Cogmind - Beta 13 @@@ ROGUE MODE // 2024.06.03 @ 21:31:32 Player: BatSpy Result: Destroyed by Y-45 Defender with Heavy Assault Rifle Performance ------------- Evolutions (2) 1000 Regions Visited (4) 800 Robots Destroyed (0) 0 Value Destroyed (0) 0 Prototype IDs (3) 60 Alien Tech Used (0) 0 Bonus (670) 670 TOTAL SCORE: 2530 Bonus ------- Pacifist 470 Entered Garrisons 200 Cogmind --------- Core Integrity 0/550 Matter 230/300 Energy 100/100 System Corruption 0% Temperature Cool (0) Movement Core (150) Ox2 Location -8/Garrison Parts ------- > --- POWER (2) -------- (None) > --- PROPULSION (3) --- (None) > --- UTILITY (4) ------ Small Storage Unit Improved Utility Shielding > --- WEAPON (2) ------- (None) > --- INVENTORY (8) ---- Authchip [R/Combat] Authchip [R/Combat] Authchip [R/Combat] Authchip [R/Combat] Authchip [R/Combat] Authchip [R/Combat] Peak State ------------ > --- POWER ------------ (None) > --- PROPULSION ------- Xenon Bombardment Thruster Xenon Bombardment Thruster Xenon Bombardment Thruster > --- UTILITY ---------- Small Storage Unit Reaction Control System Improved Propulsion Shielding Improved Utility Shielding > --- WEAPON ----------- (None) > --- INVENTORY -------- VTOL Module Xenon Bombardment Thruster Authchip [R/Combat] Authchip [R/Combat] Authchip [R/Combat] Authchip [R/Combat] Authchip [R/Combat] Authchip [R/Combat] [Rating: 25] Favorites ----------- Power Ion Engine Engine Ion Engine Propulsion Xenon Bombardment Thruster Wheel Wheel Flight Unit Xenon Bombardment Thruster Utility Propulsion Shielding Device Seismic Detector Storage Small Storage Unit Processor Advanced Terrain Scan Processor Protection Propulsion Shielding Weapon Datajack Energy Gun Improved Medium Laser Special Melee Weapon Datajack Build | -11 -10 -9 -8 -8 ------- Run | Yrd Mat Mat Mat Gar Slots Evolved 4 | . . 2 2 . Power 1 | . . . 1 . Propulsion 1 | . . . 1 . Utility 2 | . . 2 . . Weapon . | . . . . . Parts Attached 22 | 3 2 6 7 4 Power 3 | 1 . 2 . . Engine 3 | 1 . 2 . . Core . | . . . . . Reactor . | . . . . . Propulsion 10 | 2 . 2 3 3 Treads . | . . . . . Leg . | . . . . . Wheel 2 | 2 . . . . Hover . | . . . . . Flight 8 | . . 2 3 3 Utility 7 | . 1 1 4 1 Device 2 | . 1 . 1 . Storage 1 | . . . 1 . Processor 1 | . . . 1 . Hackware . | . . . . . Protection 3 | . . 1 1 1 Artifact . | . . . . . Weapon 2 | . 1 1 . . Energy Gun 1 | . . 1 . . Energy Cannon . | . . . . . Ballistic Gun . | . . . . . Ballistic Cannon . | . . . . . Launcher . | . . . . . Special Weapon . | . . . . . Impact Weapon . | . . . . . Slashing Weapon . | . . . . . Piercing Weapon . | . . . . . Special Melee Weapon 1 | . 1 . . . Unidentified Prototypes 1 | . . 1 . . Parts Lost 13 | . . 5 1 7 Power 2 | . . 1 1 . Propulsion 7 | . . 2 . 5 Utility 3 | . . 1 . 2 Weapon 1 | . . 1 . . Highest Loss Streak 7 | . . 4 1 7 To Critical Strikes . | . . . . . Average Slot Usage (%) 50 | . 59 34 55 59 Engine 6 | . 14 7 2 . Wheel 7 | . 28 4 . . Flight 15 | . . 11 24 25 Device 4 | . 9 2 . 7 Storage 3 | . . . 6 9 Processor 1 | . . . 6 . Protection 9 | . . 6 14 16 Special Melee Weapon 1 | . 6 . . . Naked Turns 14 | . . 14 . . Heaviest Build 11 | 5 7 7 11 10 Greatest Support 26 | 26 26 26 18 12 Greatest Overweight (x) 2 | . . 1 . 2 Average Overweight (x) . | . . . . . Largest Inventory Capacity 8 | 5 5 5 8 8 Average Capacity 6 | 5 5 5 7 8 Most Carried 8 | 3 4 5 6 8 Average Carried 4 | 2 3 3 4 6 Final Capacity 8 | 5 5 5 8 8 Final Carried 6 | 3 3 3 5 6 Class Distribution -------------------- 76% | Mutant 23% | Sprinter Dominant Class ---------------- Mutant | -10/Materials Sprinter | -9/Materials Mutant | -8/Materials Mutant | -8/Garrison Resources | -11 -10 -9 -8 -8 ----------- Run | Yrd Mat Mat Mat Gar Matter Collected 285 | 202 . 83 . . Remotely . | . . . . . Salvage Created . | . . . . . Parts . | . . . . . Haulers Intercepted . | . . . . . Recyclers Shooed . | . . . . . Parts Field Recycled . | . . . . . Retrieved Matter . | . . . . . Parts Self-Destructed . | . . . . . Prevented . | . . . . . Kills | -11 -10 -9 -8 -8 ------- Run | Yrd Mat Mat Mat Gar Combat Hostiles Destroyed . | . . . . . Classes Destroyed . | . . . . . Best Kill Streak . | . . . . . Combat Bots Only . | . . . . . Max Kills in Single Turn . | . . . . . Gunslinging . | . . . . . Exploded . | . . . . . Melee . | . . . . . Uniques/NPCs Destroyed . | . . . . . Combat | -11 -10 -9 -8 -8 -------- Run | Yrd Mat Mat Mat Gar Hostile Shots Fired 164 | . . 42 54 68 Missed 64 | . . 16 23 25 Damage Taken 1338 | . . 315 393 630 Core 682 | . . 127 182 373 Absorbed by Shields 5 | . . . . 5 Redirected to Shielding 180 | . . . 74 106 Core Remaining (%) 89 | 100 100 68 . . Volleys Fired . | . . . . . Largest . | . . . . . Hottest . | . . . . . Shots Fired . | . . . . . Gun . | . . . . . Cannon . | . . . . . Launcher . | . . . . . Special . | . . . . . Kinetic . | . . . . . Thermal . | . . . . . Explosive . | . . . . . Electromagnetic . | . . . . . Robot Hit Streak . | . . . . . Robot Miss Streak . | . . . . . Penetration Max . | . . . . . Secondary Targets . | . . . . . Shots Hit Robots . | . . . . . Core Hits . | . . . . . Critical Kills . | . . . . . Critical Parts Destroyed . | . . . . . Critical Strikes . | . . . . . Melee Attacks . | . . . . . Impact . | . . . . . Slashing . | . . . . . Piercing . | . . . . . Sneak Attacks . | . . . . . Combat Hostiles . | . . . . . Follow-up Attacks . | . . . . . Damage Inflicted . | . . . . . Guns . | . . . . . Cannons . | . . . . . Explosions . | . . . . . Melee . | . . . . . Ramming . | . . . . . Kinetic . | . . . . . Thermal . | . . . . . Explosive . | . . . . . Electromagnetic . | . . . . . Impact . | . . . . . Slashing . | . . . . . Piercing . | . . . . . Highest Corruption . | . . . . . Average Corruption . | . . . . . Corruption Purged . | . . . . . Corruption Blocked . | . . . . . Overload Shots . | . . . . . Overflow Damage . | . . . . . Projectiles . | . . . . . Explosions . | . . . . . Melee . | . . . . . Knockbacks . | . . . . . Impact . | . . . . . Kinetic . | . . . . . Secondary . | . . . . . Self-Inflicted Damage . | . . . . . Shots . | . . . . . Rammed . | . . . . . Targets Rammed . | . . . . . Kicked . | . . . . . Crushed . | . . . . . Highest Temperature 16 | . . . 16 12 Average Temperature 9 | . . . 8 12 Received Heat Transfer 483 | . . 153 90 240 Siege Activations . | . . . . . Robots Corrupted . | . . . . . Combat Hostiles . | . . . . . Parts Fried . | . . . . . Impact Corruptions . | . . . . . Robots Melted . | . . . . . Combat Hostiles . | . . . . . Parts Melted . | . . . . . Heat Transferred . | . . . . . Parts Sabotaged . | . . . . . Parts Stolen . | . . . . . Parts Stripped . | . . . . . Power Chain Reactions . | . . . . . Alert | -11 -10 -9 -8 -8 ------- Run | Yrd Mat Mat Mat Gar Peak Influence 514 | . 38 310 514 458 Initial 334 | . . 15 130 334 Average 178 | . 20 120 275 369 Maximum Alert Level 2 | . . 1 2 2 Low Security (%) 54 | 100 100 72 25 . Level 1 34 | . . 27 56 66 Level 2 10 | . . . 18 33 Level 3 . | . . . . . Level 4 . | . . . . . Level 5 . | . . . . . High Security . | . . . . . Max Security . | . . . . . Squads Dispatched 6 | . 1 4 1 . Investigation 3 | . 1 1 1 . Extermination . | . . . . . Reinforcement 3 | . . 3 . . Assault . | . . . . . Garrison . | . . . . . Intercept . | . . . . . Searches Triggered . | . . . . . Construction Impeded . | . . . . . Haulers Reinforced . | . . . . . Active Scanning Responses . | . . . . . Cargo Convoy Interrupts . | . . . . . Stealth | -11 -10 -9 -8 -8 --------- Run | Yrd Mat Mat Mat Gar Distress Signals 4 | . . 4 . . Communications Jammed . | . . . . . Distress Signals . | . . . . . Times Spotted 69 | . 2 22 24 21 Peak Tracking Total 19 | . 4 9 19 16 Tactical Retreats 10 | . . 4 4 2 Traps | -11 -10 -9 -8 -8 ------- Run | Yrd Mat Mat Mat Gar Traps Triggered 6 | . 1 1 1 3 Indirectly . | . . . . . Trap Hack Attempts . | . . . . . Triggered . | . . . . . Disarmed . | . . . . . Reprogrammed . | . . . . . Reused . | . . . . . Traps Extracted . | . . . . . Installed . | . . . . . Triggered . | . . . . . Machines | -11 -10 -9 -8 -8 ---------- Run | Yrd Mat Mat Mat Gar Machines Disabled . | . . . . . Max in Single Turn . | . . . . . Garrison Relay 1 | . . . . 1 Machines Repaired . | . . . . . Machines Dismantled . | . . . . . Machines Sabotaged . | . . . . . Overloaded Fab Kills . | . . . . . Hacking | -11 -10 -9 -8 -8 --------- Run | Yrd Mat Mat Mat Gar Machines Accessed 12 | . 2 1 8 1 Terminals 11 | . 2 1 7 1 Fabricators . | . . . . . Repair Stations . | . . . . . Recycling Units . | . . . . . Scanalyzers . | . . . . . Garrison Access 1 | . . . 1 . Total Hacks 46 | . 6 3 33 4 Successful 28 | . 4 2 21 1 Failed 18 | . 2 1 12 3 Catastrophic 2 | . 1 . 1 . Database Lockouts . | . . . . . Manual 38 | . 6 3 29 . Terminals 44 | . 6 3 31 4 Fabricators . | . . . . . Repair Stations . | . . . . . Recycling Units . | . . . . . Scanalyzers . | . . . . . Garrison Access 2 | . . . 2 . Terminal Hacks 14 | . 1 1 11 1 Prototype ID Bank 1 | . . . 1 . Emergency Access Points 1 | . . . 1 . Terminal Index 2 | . 1 . 1 . Fabricator Index 1 | . . . 1 . Alert Level 1 | . . . 1 . Locate Traps 6 | . . 1 5 . Zone Layout 1 | . . . 1 . Garrison Registry 1 | . . . . 1 Fabricator Hacks . | . . . . . Repair Station Hacks . | . . . . . Recycling Unit Hacks . | . . . . . Scanalyzer . | . . . . . Garrison Access Hacks 1 | . . . 1 . Unlock Access 1 | . . . 1 . Unauthorized Hacks 13 | . 3 1 9 . Terminals 13 | . 3 1 9 . Assimilate 4 | . 1 1 2 . Botnet 9 | . 2 . 7 . Fabricators . | . . . . . Repair Stations . | . . . . . Recycling Units . | . . . . . Scanalyzers . | . . . . . Garrison Access . | . . . . . Data Cores Recovered . | . . . . . Used . | . . . . . Hacking Detections 12 | . 2 1 8 1 Full Trace Events 1 | . . . . 1 Feedback Events . | . . . . . Feedback Blocked . | . . . . . Robot Schematics Acquired . | . . . . . Robots Built . | . . . . . Authchips . | . . . . . Time . | . . . . . Total Robot Build Rating . | . . . . . Part Schematics Acquired . | . . . . . Parts Built . | . . . . . Authchips . | . . . . . Time . | . . . . . Total Part Build Rating . | . . . . . Parts Repaired . | . . . . . Time . | . . . . . Parts Recycled . | . . . . . Recycled Matter . | . . . . . Retrieved Matter . | . . . . . Retrieved Components . | . . . . . Parts Scanalyzed . | . . . . . Part Schematics Acquired . | . . . . . Parts Damaged . | . . . . . Bothacking | -11 -10 -9 -8 -8 ------------ Run | Yrd Mat Mat Mat Gar Used RIF Installer . | . . . . . Robots Hacked . | . . . . . Non-combat . | . . . . . Combat . | . . . . . Robot Hacks Applied . | . . . . . Relay Couplers Released 5 | . . . . 5 Machine Destruction 5 | . . . . 5 Fabnet Peak Effective % . | . . . . . Robots Rewired . | . . . . . Allies Hacked . | . . . . . Hacks Repelled . | . . . . . Allies | -11 -10 -9 -8 -8 -------- Run | Yrd Mat Mat Mat Gar Total Allies 1 | . . . 1 . Largest Group 1 | . . . 1 . Highest-Rated Group 10 | . . . 10 . Highest-Rated Ally 10 | . . . 10 . Total Orders . | . . . . . Ally Attacks . | . . . . . Total Damage . | . . . . . Kills . | . . . . . Allies Corrupted . | . . . . . Allies Melted . | . . . . . Intel | -11 -10 -9 -8 -8 ------- Run | Yrd Mat Mat Mat Gar Robot Analysis Total . | . . . . . Derelict Logs Recovered . | . . . . . Drone Launches . | . . . . . Drone Recoveries . | . . . . . Exploration | -11 -10 -9 -8 -8 ------------- Run | Yrd Mat Mat Mat Gar Turns Passed 788 | 40 173 242 161 172 Spaces Moved 1324 | 38 142 517 393 234 Core 39 | 6 . 31 . 2 Treads . | . . . . . Legs . | . . . . . Wheels 232 | 32 142 58 . . Hover . | . . . . . Flight 1053 | . . 428 393 232 Fastest Speed 32 | 50 90 32 32 37 Average Speed 45 | 83 90 41 35 40 Slowest Speed 150 | 90 90 100 37 150 Overloaded Moves . | . . . . . Propulsion Burnouts . | . . . . . Robots Hopped 11 | . . 1 7 3 Cave-ins Triggered . | . . . . . Exploration Rate (%) 33 | 4 27 56 43 37 Regions Visited 4 Branch Regions . Pre-discovered Areas . | . . . . . Known Exits Taken 1 | . . . 1 . Unknown Exits Taken 3 | 1 1 1 . . Scrap Searched . | . . . . . Spaces Dug . | . . . . . Terrain Destroyed . | . . . . . Melee . | . . . . . Projectile . | . . . . . AOE . | . . . . . Terrain Rammed . | . . . . . Walls Destroyed . | . . . . . Machines Disabled . | . . . . . Actions | -11 -10 -9 -8 -8 --------- Run | Yrd Mat Mat Mat Gar Total 1492 | 46 187 545 406 308 Wait 76 | . 42 17 5 12 Move 1299 | 37 141 514 379 228 Hop 10 | . . 1 6 3 Pick Up 26 | 6 2 5 7 6 Fast Attach 1 | . . . 1 . Attach 16 | 3 2 6 3 2 Detach 1 | . . 1 . . Swap 5 | . . . 3 2 Drop 5 | . . 1 2 2 Fire . | . . . . . Melee . | . . . . . Ram . | . . . . . Kick . | . . . . . Crush . | . . . . . Escape Stasis 53 | . . . . 53 Rewire . | . . . . . Trap . | . . . . . Miscellaneous . | . . . . . Route ------- -11/Scrapyard -10/Materials -9/Materials (discovered 2 exits: *Mat x2) -8/Materials -8/Garrison (discovered 3 exits: [*Mat x3]) History --------- Turn | Location | Event 14 | -11/Scrapyard | Discovered new exit (range 16) 41 | -11/Scrapyard | Entered Materials 109 | -10/Materials | Discovered new exit (range 8) 214 | -10/Materials | Entered another Materials area 214 | -9/Materials | Evolved 2 slots: Utility x2 310 | -9/Materials | Lost 4 parts (1p2n1u) 380 | -9/Materials | Discovered new exit (range 16) 449 | -9/Materials | Discovered new exit (range 16) 456 | -9/Materials | Entered another Materials area 456 | -8/Materials | Evolved 2 slots: Power x1, Propulsion x1 595 | -8/Materials | Identified exit to Garrison 617 | -8/Materials | Entered Garrison 705 | -8/Garrison | Triggered checkpoint 732 | -8/Garrison | Discovered new exit (range 61) 732 | -8/Garrison | Discovered new exit (range 23) 732 | -8/Garrison | Discovered new exit (range 28) 734 | -8/Garrison | Garrison Relay disabled 768 | -8/Garrison | Core integrity fell below 50% 781 | -8/Garrison | Core integrity fell below 20% 782 | -8/Garrison | Triggered checkpoint 783 | -8/Garrison | Triggered checkpoint 789 | -8/Garrison | Destroyed by Y-45 Defender with Heavy Assault Rifle Last Messages --------------- 00734_ Relay Coupler [NC] tumbles out of relay unit. 00734_ Relay Coupler [Hunter] tumbles out of relay unit. 00734_ Relay Coupler [Grunt] tumbles out of relay unit. 00734_ Relay Coupler [NC] tumbles out of relay unit. 00766_ Reaction Control System destroyed. 00766_ Penetrated by Slug. 00767_ Imp. Propulsion Shielding destroyed. 00767_ Xenon Bombardment Thruster destroyed. 00769_ Penetrated by Slug. 00773_ Xenon Bombardment Thruster destroyed. 00776_ Critical hit (Burn: +37). 00782_ Beams of light sweep through the air. An alarm sounds. 00783_ Xenon Bombardment Thruster destroyed. 00786_ VTOL Module destroyed. Map ----- +----------------------------------------------------+ | ?????????????# T#??????#"" + + ""#??######?????? | | ######???????# "#??????### # # ###??# #?????? | | #???????# ##??????##### #####??# < #?????? | | #???????# #????????#### ####???# #?????? | | ### #???????# ####????????# ###??????# ###?????? | | ??# #???????# #"#????????# ########## #???????? | | ??# #???????# !!!#????????# ## + #???????? | | ??# #???????# !"#????????# ## ####### #???????? | | ??# #???????#^! "#????????# ## #?????# #???????? | | ??# #???????# #"#????????# ## #?????# #???????? | | ??# #?????### ###?????#### ## #?????# #???????? | | ??# #?????# #??????##T## ##+####### #???????? | | ??# #?????# #??????# ^^ ########? | | ??# #?????# #??????# ^^ + "#? | | ??# #?????### #??????# #####+#####^#### ##"T"#? | | ??# #???????# #??????# #???# #???# #??# ######? | | ??# #???????# #??????# #???# #???# #??# #?????? | | ??# #???????# #??????# ##### ##### #??# #?????? | | ??# #???????# #??????# + + #?##+##????? | | ??# #???????# ######## ##### ##### #?# #????? | | ??# #???????# ## ## #???# #???# ###"""###### | | ??# #??????## ## ## ##??# #???# | | ### ######## #### #???#+############ | | + g + #??## #?????????#" | | + Y ######??# #?????????## | | ############# ## ## @ #???????# #??????????? | | ??????????### ## ## ###?????####??????????? | | ??????????# ^ #???????????????????? | | ??????????# ^ #???????????????????? | | ??????????# ^ #???????????????????? | | ??????????# ^ #???????????????????? | | ??????????### ## ## ###???????????????????? | | ??########### ## ## ##########????????????? | | ??# s ############## | | ??# + | | ??# ###+#### ####+## ########### ## | | ??# #?# #??## ## s ## ##??# ## #?????????# #? | | ??# #?# #???# ##s ## #???# ## #?????????# #? | | ### ### ##### ######## #???# ## #????????##+## | | + + #??????# ##### ## #????????# # | | ### ##### ### #??????# + ## ##########"""# | | ### #???# #?# #??????# ##### + + + | | ## #####+### #??????# #???#### ##### ######## | | ## ^^ #??????# ######## #???# #??????? | | ## ^^ #??????# ^^ ##### #??????? | | ## ############??????# #??????? | | ## #?????????????????# ######## #######??????? | | ## #???????????????### ######## #????????????? | | + #???????????????#"" ""## #????????????? | | ### #???????????????#"[[ "## #????????????? | +----------------------------------------------------+ Best States ------------- Heat Dissipation 31 Energy Generation 10 Energy Capacity 250 Matter Stores 300 Matter Capacity 300 Sight Range 16 Terrain Scan Density 210 Propulsion Shielding 66 Utility Shielding 66 Evasion (%) 70 Authchip Count 6 Item Schematics ----------------- None Robot Schematics ------------------ None Fabricated ------------ Nothing Alien Tech Used ----------------- None Achievements -------------- None Challenges ------------ None Game ------ Seed AlertStasisShield Manual? 0 Play Time 00:22:12 Cumulative 30.5 hours Start 2024.06.03 @ 19:01:51 End 2024.06.03 @ 21:31:32 Sessions 5 Manual Loads 0 Difficulty Rogue Special Mode None Game No. 59 Rogue 59 Adventurer 0 Explorer 0 Win Type - Total 0 Types 0/0/0/0/0/0/0/0/0 Lore% 24 Gallery% 36 Achievement% 28 Wizard Run 0 Options --------- Layout 1 ASCII 0 Keyboard 0 Movement Mouse Keybinds 0 Fullscreen 2 Font 32/Smallcaps Map View 50x35 Zoom Use 0% Tactical HUD 1 Map Filters NONE Filters NONE Steam 1 RUN: 377a1a8e-5c0a-4b1a-844d-03287f72fedd